{"text_format":"3","workbook":"xlsx","n_sheets":2,"sheets":["התחלה","גליון זמנים שנתי"],"not_rendered":{"defined_names":2},"read":"whole","date_system":"1900"}

{"sheet":"התחלה","index":0,"n_rows":8,"n_cols":2,"rows_kept":8}
[null,"אודות תבנית זו"]
[null,"עקוב אחר השעות שלך על בסיס יומי, שבועי, חודשי ושנתי בכרטיס השעות לעובד."]
[null,"מלא מידע בסיסי כגון שם העובד, שם המנהל, כתובת דואר אלקטרוני ומספר טלפון. "]
[null,"הוסף את השעות לכל טבלת חודש. רשום שעות רגילות ושעות נוספות בעמודות נפרדות עבור כל יום חול בכל שבוע. "]
[null,"סה\"כ שעות העבודה, השעות הרגילות והשעות הנוספות מחושבות באופן אוטומטי. "]
[null,"הערות:"]
[null,"הוראות נוספות סופקו בעמודה A בגליון העבודה 'גליון זמנים שנתי'. טקסט זה הוסתר במכוון. כדי להסיר את הטקסט, בחר את עמודה A ולאחר מכן בחר DELETE. כדי לבטל את הסתרת הטקסט, בחר את עמודה A ולאחר מכן שנה את צבע הגופן. "]
[null,"לקבלת מידע נוסף על הטבלאות, הקש SHIFT ולאחר מכן F10 בתוך טבלה, בחר את האפשרות 'טבלה' ולאחר מכן בחר 'טקסט חלופי'."]

{"sheet":"גליון זמנים שנתי","index":1,"n_rows":132,"n_cols":15,"rows_kept":132,"merged":[[0,1,0,2],[0,4,0,14],[10,6,10,7],[21,6,21,7],[32,6,32,7],[33,4,33,14],[43,6,43,7],[54,6,54,7],[65,6,65,7],[66,4,66,14],[76,6,76,7],[87,6,87,7],[98,6,98,7],[99,4,99,14],[109,6,109,7],[120,6,120,7],[131,6,131,7]]}
["צור גליון זמנים יומי, שבועי, חודשי או שנתי עבור עובד בחוברת עבודה זו. \nהוראות שימוש בחוברת עבודה זו מופיעות בתאים שבעמודה זו. הקש על החץ למטה כדי להתחיל.\nהכותרת של גליון עבודה זה מופיעה בתא משמאל, וכותרת הרבעון של ינואר, פברואר ומרץ מופיעה בתא E1.","עובד \nכרטיס שעות",null,null,"ינואר, פברואר, מרץ      כרטיס שעות לעובד: יומי, שבועי, חודשי, שנתי"]
["הזן את שם העובד בתא C2. הזן את השעות הרגילות והשעות הנוספות בטבלה של ינואר שמתחילה בתא E2.","שם העובד:",null,null,"ינואר","שבוע 1","שעות נוספות","שבוע 2","שעות נוספות  ","שבוע 3","שעות נוספות   ","שבוע 4","שעות נוספות    ","שבוע 5","שעות נוספות     "]
["הזן את שם המנהל בתא C3.","מנהל:",null,null,"שני",{"v":8,"d":"8.0"}]
["הזן כתובת דואר אלקטרוני בתא C4.","דואר אלקטרוני:",null,null,"שלישי",{"v":8,"d":"8.0"},{"v":2,"d":"2.0"}]
["הזן מספר טלפון בתא C5. ההוראה הבאה מופיעה בתא A9.","טלפון:",null,null,"רביעי"]
[{"$nulls":4},"חמישי"]
[{"$nulls":4},"שישי"]
[{"$nulls":4},"שבת"]
["סה\"כ השעות הרגילות השנתיות מחושבות באופן אוטומטי בתא C9.","שעות רגילות:",{"$f":"RegularHrs","v":31},null,"ראשון"]
["סה\"כ השעות הנוספות השנתיות מחושבות באופן אוטומטי בתא C10.","שעות נוספות:",{"$f":"Overtime_hrs","v":4},null,"סה\"כ שעות שבועיות",{"$f":"SUM(F3:F9)","v":{"v":16,"d":"16.0"}},{"v":2,"d":"2.0"},{"v":0,"d":"0.0"},{"v":0,"d":"0.0"},{"v":0,"d":"0.0"},{"v":0,"d":"0.0"},{"v":0,"d":"0.0"},{"v":0,"d":"0.0"},{"v":0,"d":"0.0"},{"v":0,"d":"0.0"}]
["סה\"כ השעות השנתיות מחושבות באופן אוטומטי בתא C11. סה\"כ השעות הרגילות בינואר בתא F11 וסה\"כ השעות הנוספות בינואר בתא I11 מחושבות באופן אוטומטי. ההוראה הבאה מופיעה בתא A13.","סך הכל",{"$f":"RegularHrs+Overtime_hrs","v":35},null,{"$f":"TEXT(DATEVALUE(ינואר[[#Headers],[ינואר]]&\"  \"&YEAR(TODAY())),\"mmm.\")&\"סך הכל: שעות נוספות\"","v":"ינו.סך הכל: שעות נוספות"},{"$f":"SUM(ינואר[שבוע 1],ינואר[שבוע 2],ינואר[שבוע 3],ינואר[שבוע 4],ינואר[שבוע 5])","v":{"v":16,"d":"16.0"}},{"$f":"TEXT(DATEVALUE(ינואר[[#Headers],[ינואר]]&\"  \"&YEAR(TODAY())),\"mmm.\")&\" סך הכל: שעות רגילות\"","v":"ינו. סך הכל: שעות רגילות"},null,{"$f":"SUM(ינואר[שעות נוספות],ינואר[[שעות נוספות  ]],ינואר[[שעות נוספות   ]],ינואר[[שעות נוספות    ]],ינואר[[שעות נוספות     ]])","v":{"v":2,"d":"2.0"}}]
[]
["הזן את השעות הרגילות והשעות הנוספות בטבלה של פברואר שמתחילה בתא E13. ההוראה הבאה מופיעה בתא A22.",{"$nulls":3},"פברואר","שבוע 1","שעות נוספות","שבוע 2","שעות נוספות  ","שבוע 3","שעות נוספות   ","שבוע 4","שעות נוספות    ","שבוע 5","שעות נוספות     "]
[{"$nulls":4},"שני",{"v":8,"d":"8.0"}]
[{"$nulls":4},"שלישי",{"v":7,"d":"7.0"},{"v":2,"d":"2.0"}]
[{"$nulls":4},"רביעי"]
[{"$nulls":4},"חמישי"]
[{"$nulls":4},"שישי"]
[{"$nulls":4},"שבת"]
[{"$nulls":4},"ראשון"]
[{"$nulls":4},"סה\"כ שעות שבועיות",{"$f":"SUM(F14:F20)","v":{"v":15,"d":"15.0"}},{"v":2,"d":"2.0"},{"v":0,"d":"0.0"},{"v":0,"d":"0.0"},{"v":0,"d":"0.0"},{"v":0,"d":"0.0"},{"v":0,"d":"0.0"},{"v":0,"d":"0.0"},{"v":0,"d":"0.0"},{"v":0,"d":"0.0"}]
["סה\"כ השעות הרגילות בפברואר בתא F22 וסה\"כ השעות הנוספות בפברואר בתא I22 מחושבות באופן אוטומטי. ההוראה הבאה מופיעה בתא A24.",{"$nulls":3},{"$f":"TEXT(DATEVALUE(פברואר[[#Headers],[פברואר]]&\"  \"&YEAR(TODAY())),\"mmm.\")&\"סך הכל: שעות נוספות\"","v":"פבר.סך הכל: שעות נוספות"},{"$f":"SUM(פברואר[שבוע 1],פברואר[שבוע 2],פברואר[שבוע 3],פברואר[שבוע 4],פברואר[שבוע 5])","v":{"v":15,"d":"15.0"}},{"$f":"TEXT(DATEVALUE(פברואר[[#Headers],[פברואר]]&\" \"&YEAR(TODAY())),\"mmm.\")&\" סך הכל: שעות רגילות\"","v":"פבר. סך הכל: שעות רגילות"},null,{"$f":"SUM(פברואר[שעות נוספות],פברואר[[שעות נוספות  ]],פברואר[[שעות נוספות   ]],פברואר[[שעות נוספות    ]],פברואר[[שעות נוספות     ]])","v":{"v":2,"d":"2.0"}}]
[]
["הזן את השעות הרגילות והשעות הנוספות בטבלה של מרץ שמתחילה בתא E24. ההוראה הבאה מופיעה בתא A33.",{"$nulls":3},"מרץ","שבוע 1","שעות נוספות","שבוע 2","שעות נוספות ","שבוע 3","שעות נוספות  ","שבוע 4","שעות נוספות    ","שבוע 5","שעות נוספות     "]
[{"$nulls":4},"שני"]
[{"$nulls":4},"שלישי"]
[{"$nulls":4},"רביעי"]
[{"$nulls":4},"חמישי"]
[{"$nulls":4},"שישי"]
[{"$nulls":4},"שבת"]
[{"$nulls":4},"ראשון"]
[{"$nulls":4},"סה\"כ שעות שבועיות",{"$f":"SUM(F25:F31)","v":{"v":0,"d":"0.0"}},{"v":0,"d":"0.0"},{"v":0,"d":"0.0"},{"v":0,"d":"0.0"},{"v":0,"d":"0.0"},{"v":0,"d":"0.0"},{"v":0,"d":"0.0"},{"v":0,"d":"0.0"},{"v":0,"d":"0.0"},{"v":0,"d":"0.0"}]
["סה\"כ השעות הרגילות במרץ בתא F33 וסה\"כ השעות הנוספות במרץ בתא I33 מחושבות באופן אוטומטי.",{"$nulls":3},{"$f":"TEXT(DATEVALUE(מרץ[[#Headers],[מרץ]]&\" \"&YEAR(TODAY())),\"mmm.\")&\"סך הכל: שעות נוספות\"","v":"מרץ.סך הכל: שעות נוספות"},{"$f":"SUM(מרץ[שבוע 1],מרץ[שבוע 2],מרץ[שבוע 3],מרץ[שבוע 4],מרץ[שבוע 5])","v":{"v":0,"d":"0.0"}},{"$f":"TEXT(DATEVALUE(מרץ[[#Headers],[מרץ]]&\" \"&YEAR(TODAY())),\"mmm.\")&\"סך הכל: שעות רגילות\"","v":"מרץ.סך הכל: שעות רגילות"},null,{"$f":"SUM(מרץ[שעות נוספות],מרץ[[שעות נוספות ]],מרץ[[שעות נוספות  ]],מרץ[[שעות נוספות    ]],מרץ[[שעות נוספות     ]])","v":{"v":0,"d":"0.0"}}]
["כותרת הרבעון השני של אפריל, מאי ויוני מופיעה בתא E34. ",{"$nulls":3},"אפריל, מאי, יוני      כרטיס שעות לעובד: יומי, שבועי, חודשי, שנתי"]
["הזן את השעות הרגילות והשעות הנוספות בטבלה של אפריל שמתחילה בתא E35. ההוראה הבאה מופיעה בתא A44.",{"$nulls":3},"אפריל","שבוע 1","שעות נוספות","שבוע 2","שעות נוספות  ","שבוע 3","שעות נוספות   ","שבוע 4","שעות נוספות    ","שבוע 5","שעות נוספות     "]
[{"$nulls":4},"שני"]
[{"$nulls":4},"שלישי"]
[{"$nulls":4},"רביעי"]
[{"$nulls":4},"חמישי"]
[{"$nulls":4},"שישי"]
[{"$nulls":4},"שבת"]
[{"$nulls":4},"ראשון"]
[{"$nulls":4},"סה\"כ שעות שבועיות",{"$f":"SUM(F36:F42)","v":{"v":0,"d":"0.0"}},{"v":0,"d":"0.0"},{"v":0,"d":"0.0"},{"v":0,"d":"0.0"},{"v":0,"d":"0.0"},{"v":0,"d":"0.0"},{"v":0,"d":"0.0"},{"v":0,"d":"0.0"},{"v":0,"d":"0.0"},{"v":0,"d":"0.0"}]
["סה\"כ השעות הרגילות באפריל בתא F44 וסה\"כ השעות הנוספות באפריל בתא I44 מחושבות באופן אוטומטי. ההוראה הבאה מופיעה בתא A46.",{"$nulls":3},{"$f":"TEXT(DATEVALUE(אפריל[[#Headers],[אפריל]]&\" \"&YEAR(TODAY())),\"mmm.\")&\"סך הכל: שעות נוספות\"","v":"אפר.סך הכל: שעות נוספות"},{"$f":"SUM(אפריל[שבוע 1],אפריל[שבוע 2],אפריל[שבוע 3],אפריל[שבוע 4],אפריל[שבוע 5])","v":{"v":0,"d":"0.0"}},{"$f":"TEXT(DATEVALUE(אפריל[[#Headers],[אפריל]]&\" \"&YEAR(TODAY())),\"mmm.\")&\"סך הכל: שעות רגילות\"","v":"אפר.סך הכל: שעות רגילות"},null,{"$f":"SUM(אפריל[שעות נוספות],אפריל[[שעות נוספות  ]],אפריל[[שעות נוספות   ]],אפריל[[שעות נוספות    ]],אפריל[[שעות נוספות     ]])","v":{"v":0,"d":"0.0"}}]
[]
["הזן את השעות הרגילות והשעות הנוספות בטבלה של מאי שמתחילה בתא E46. ההוראה הבאה מופיעה בתא A55.",{"$nulls":3},"מאי","שבוע 1","שעות נוספות","שבוע 2","שעות נוספות  ","שבוע 3","שעות נוספות   ","שבוע 4","שעות נוספות    ","שבוע 5","שעות נוספות     "]
[{"$nulls":4},"שני"]
[{"$nulls":4},"שלישי"]
[{"$nulls":4},"רביעי"]
[{"$nulls":4},"חמישי"]
[{"$nulls":4},"שישי"]
[{"$nulls":4},"שבת"]
[{"$nulls":4},"ראשון"]
[{"$nulls":4},"סה\"כ שעות שבועיות",{"$f":"SUM(F47:F53)","v":{"v":0,"d":"0.0"}},{"v":0,"d":"0.0"},{"v":0,"d":"0.0"},{"v":0,"d":"0.0"},{"v":0,"d":"0.0"},{"v":0,"d":"0.0"},{"v":0,"d":"0.0"},{"v":0,"d":"0.0"},{"v":0,"d":"0.0"},{"v":0,"d":"0.0"}]
["סה\"כ השעות הרגילות במאי בתא F55 וסה\"כ השעות הנוספות במאי בתא I55 מחושבות באופן אוטומטי. ההוראה הבאה מופיעה בתא A57.",{"$nulls":3},{"$f":"TEXT(DATEVALUE(מאי[[#Headers],[מאי]]&\" \"&YEAR(TODAY())),\"mmm.\")&\"סך הכל: שעות נוספות\"","v":"מאי.סך הכל: שעות נוספות"},{"$f":"SUM(מאי[שבוע 1],מאי[שבוע 2],מאי[שבוע 3],מאי[שבוע 4],מאי[שבוע 5])","v":{"v":0,"d":"0.0"}},{"$f":"TEXT(DATEVALUE(מאי[[#Headers],[מאי]]&\" \"&YEAR(TODAY())),\"mmm.\")&\"סך הכל: שעות רגילות\"","v":"מאי.סך הכל: שעות רגילות"},null,{"$f":"SUM(מאי[שעות נוספות],מאי[[שעות נוספות  ]],מאי[[שעות נוספות   ]],מאי[[שעות נוספות    ]],מאי[[שעות נוספות     ]])","v":{"v":0,"d":"0.0"}}]
[]
["הזן את השעות הרגילות והשעות הנוספות בטבלה של יוני שמתחילה בתא E57. ההוראה הבאה מופיעה בתא A66.",{"$nulls":3},"יוני","שבוע 1","שעות נוספות","שבוע 2","שעות נוספות  ","שבוע 3","שעות נוספות   ","שבוע 4","שעות נוספות    ","שבוע 5","שעות נוספות     "]
[{"$nulls":4},"שני"]
[{"$nulls":4},"שלישי"]
[{"$nulls":4},"רביעי"]
[{"$nulls":4},"חמישי"]
[{"$nulls":4},"שישי"]
[{"$nulls":4},"שבת"]
[{"$nulls":4},"ראשון"]
[{"$nulls":4},"סה\"כ שעות שבועיות",{"$f":"SUM(F58:F64)","v":{"v":0,"d":"0.0"}},{"v":0,"d":"0.0"},{"v":0,"d":"0.0"},{"v":0,"d":"0.0"},{"v":0,"d":"0.0"},{"v":0,"d":"0.0"},{"v":0,"d":"0.0"},{"v":0,"d":"0.0"},{"v":0,"d":"0.0"},{"v":0,"d":"0.0"}]
["סה\"כ השעות הרגילות ביוני בתא F66 וסה\"כ השעות הנוספות ביוני בתא I66 מחושבות באופן אוטומטי.",{"$nulls":3},{"$f":"TEXT(DATEVALUE(יוני[[#Headers],[יוני]]&\" \"&YEAR(TODAY())),\"mmm.\")&\"סך הכל: שעות נוספות\"","v":"יונ.סך הכל: שעות נוספות"},{"$f":"SUM(יוני[שבוע 1],יוני[שבוע 2],יוני[שבוע 3],יוני[שבוע 4],יוני[שבוע 5])","v":{"v":0,"d":"0.0"}},{"$f":"TEXT(DATEVALUE(יוני[[#Headers],[יוני]]&\" \"&YEAR(TODAY())),\"mmm.\")&\"סך הכל: שעות רגילות\"","v":"יונ.סך הכל: שעות רגילות"},null,{"$f":"SUM(יוני[שעות נוספות],יוני[[שעות נוספות  ]],יוני[[שעות נוספות   ]],יוני[[שעות נוספות    ]],יוני[[שעות נוספות     ]])","v":{"v":0,"d":"0.0"}}]
["כותרת הרבעון השלישי של יולי, אוגוסט וספטמבר מופיעה בתא E67. ",{"$nulls":3},"יולי, אוגוסט, ספטמבר      כרטיס שעות לעובד: יומי, שבועי, חודשי, שנתי"]
["הזן את השעות הרגילות והשעות הנוספות בטבלה של יולי שמתחילה בתא E68. ההוראה הבאה מופיעה בתא A77.",{"$nulls":3},"יולי","שבוע 1","שעות נוספות","שבוע 2","שעות נוספות ","שבוע 3","שעות נוספות  ","שבוע 4","שעות נוספות   ","שבוע 5","שעות נוספות     "]
[{"$nulls":4},"שני"]
[{"$nulls":4},"שלישי"]
[{"$nulls":4},"רביעי"]
[{"$nulls":4},"חמישי"]
[{"$nulls":4},"שישי"]
[{"$nulls":4},"שבת"]
[{"$nulls":4},"ראשון"]
[{"$nulls":4},"סה\"כ שעות שבועיות",{"$f":"SUM(F69:F75)","v":{"v":0,"d":"0.0"}},{"v":0,"d":"0.0"},{"v":0,"d":"0.0"},{"v":0,"d":"0.0"},{"v":0,"d":"0.0"},{"v":0,"d":"0.0"},{"v":0,"d":"0.0"},{"v":0,"d":"0.0"},{"v":0,"d":"0.0"},{"v":0,"d":"0.0"}]
["סה\"כ השעות הרגילות ביולי בתא F77 וסה\"כ השעות הנוספות ביולי בתא I77 מחושבות באופן אוטומטי. ההוראה הבאה מופיעה בתא A79.",{"$nulls":3},{"$f":"TEXT(DATEVALUE(יולי[[#Headers],[יולי]]&\" \"&YEAR(TODAY())),\"mmm.\")&\"סך הכל: שעות נוספות\"","v":"יול.סך הכל: שעות נוספות"},{"$f":"SUM(יולי[שבוע 1],יולי[שבוע 2],יולי[שבוע 3],יולי[שבוע 4],יולי[שבוע 5])","v":{"v":0,"d":"0.0"}},{"$f":"TEXT(DATEVALUE(יולי[[#Headers],[יולי]]&\" \"&YEAR(TODAY())),\"mmm.\")&\"סך הכל: שעות רגילות\"","v":"יול.סך הכל: שעות רגילות"},null,{"$f":"SUM(יולי[שעות נוספות],יולי[[שעות נוספות ]],יולי[[שעות נוספות  ]],יולי[[שעות נוספות   ]],יולי[[שעות נוספות     ]])","v":{"v":0,"d":"0.0"}}]
[]
["הזן את השעות הרגילות והשעות הנוספות בטבלה של אוגוסט שמתחילה בתא E79. ההוראה הבאה מופיעה בתא A88.",{"$nulls":3},"אוגוסט","שבוע 1","שעות נוספות","שבוע 2","שעות נוספות ","שבוע 3","שעות נוספות   ","שבוע 4","שעות נוספות  ","שבוע 5","שעות נוספות    "]
[{"$nulls":4},"שני"]
[{"$nulls":4},"שלישי"]
[{"$nulls":4},"רביעי"]
[{"$nulls":4},"חמישי"]
[{"$nulls":4},"שישי"]
[{"$nulls":4},"שבת"]
[{"$nulls":4},"ראשון"]
[{"$nulls":4},"סה\"כ שעות שבועיות",{"$f":"SUBTOTAL(109,אוגוסט[שבוע 1])","v":{"v":0,"d":"0.0"}},{"$f":"SUBTOTAL(109,אוגוסט[שעות נוספות])","v":{"v":0,"d":"0.0"}},{"$f":"SUBTOTAL(109,אוגוסט[שבוע 2])","v":{"v":0,"d":"0.0"}},{"$f":"SUBTOTAL(109,אוגוסט[[שעות נוספות ]])","v":{"v":0,"d":"0.0"}},{"$f":"SUBTOTAL(109,אוגוסט[שבוע 3])","v":{"v":0,"d":"0.0"}},{"$f":"SUBTOTAL(109,אוגוסט[[שעות נוספות   ]])","v":{"v":0,"d":"0.0"}},{"$f":"SUBTOTAL(109,אוגוסט[שבוע 4])","v":{"v":0,"d":"0.0"}},{"$f":"SUBTOTAL(109,אוגוסט[[שעות נוספות  ]])","v":{"v":0,"d":"0.0"}},{"$f":"SUBTOTAL(109,אוגוסט[שבוע 5])","v":{"v":0,"d":"0.0"}},{"$f":"SUBTOTAL(109,אוגוסט[[שעות נוספות    ]])","v":{"v":0,"d":"0.0"}}]
["סה\"כ השעות הרגילות באוגוסט בתא F88 וסה\"כ השעות הנוספות באוגוסט בתא I88 מחושבות באופן אוטומטי. ההוראה הבאה מופיעה בתא A90.",{"$nulls":3},{"$f":"TEXT(DATEVALUE(אוגוסט[[#Headers],[אוגוסט]]&\" \"&YEAR(TODAY())),\"mmm.\")&\"סך הכל: שעות נוספות\"","v":"אוג.סך הכל: שעות נוספות"},{"$f":"SUM(אוגוסט[שבוע 1],אוגוסט[שבוע 2],אוגוסט[שבוע 3],אוגוסט[שבוע 4],אוגוסט[שבוע 5])","v":{"v":0,"d":"0.0"}},{"$f":"TEXT(DATEVALUE(אוגוסט[[#Headers],[אוגוסט]]&\" \"&YEAR(TODAY())),\"mmm.\")&\"סך הכל: שעות רגילות\"","v":"אוג.סך הכל: שעות רגילות"},null,{"$f":"SUM(אוגוסט[שעות נוספות],אוגוסט[[שעות נוספות ]],אוגוסט[[שעות נוספות   ]],אוגוסט[[שעות נוספות  ]],אוגוסט[[שעות נוספות    ]])","v":{"v":0,"d":"0.0"}}]
[]
["הזן את השעות הרגילות והשעות הנוספות בטבלה של ספטמבר שמתחילה בתא E90. ההוראה הבאה מופיעה בתא A99.",{"$nulls":3},"ספטמבר","שבוע 1","שעות נוספות","שבוע 2","שעות נוספות ","שבוע 3","שעות נוספות  ","שבוע 4","שעות נוספות   ","שבוע 5","שעות נוספות    "]
[{"$nulls":4},"שני"]
[{"$nulls":4},"שלישי"]
[{"$nulls":4},"רביעי"]
[{"$nulls":4},"חמישי"]
[{"$nulls":4},"שישי"]
[{"$nulls":4},"שבת"]
[{"$nulls":4},"ראשון"]
[{"$nulls":4},"סה\"כ שעות שבועיות",{"$f":"SUBTOTAL(109,ספטמבר[שבוע 1])","v":{"v":0,"d":"0.0"}},{"$f":"SUBTOTAL(109,ספטמבר[שעות נוספות])","v":{"v":0,"d":"0.0"}},{"$f":"SUBTOTAL(109,ספטמבר[שבוע 2])","v":{"v":0,"d":"0.0"}},{"$f":"SUBTOTAL(109,ספטמבר[[שעות נוספות ]])","v":{"v":0,"d":"0.0"}},{"$f":"SUBTOTAL(109,ספטמבר[שבוע 3])","v":{"v":0,"d":"0.0"}},{"$f":"SUBTOTAL(109,ספטמבר[[שעות נוספות  ]])","v":{"v":0,"d":"0.0"}},{"$f":"SUBTOTAL(109,ספטמבר[שבוע 4])","v":{"v":0,"d":"0.0"}},{"$f":"SUBTOTAL(109,ספטמבר[[שעות נוספות   ]])","v":{"v":0,"d":"0.0"}},{"$f":"SUBTOTAL(109,ספטמבר[שבוע 5])","v":{"v":0,"d":"0.0"}},{"$f":"SUBTOTAL(109,ספטמבר[[שעות נוספות    ]])","v":{"v":0,"d":"0.0"}}]
["סה\"כ השעות הרגילות בספטמבר בתא F99 וסה\"כ השעות הנוספות בספטמבר בתא I99 מחושבות באופן אוטומטי.",{"$nulls":3},{"$f":"TEXT(DATEVALUE(ספטמבר[[#Headers],[ספטמבר]]&\" \"&YEAR(TODAY())),\"mmm.\")&\"סך הכל: שעות נוספות\"","v":"ספט.סך הכל: שעות נוספות"},{"$f":"SUM(ספטמבר[שבוע 1],ספטמבר[שבוע 2],ספטמבר[שבוע 3],ספטמבר[שבוע 4],ספטמבר[שבוע 5])","v":{"v":0,"d":"0.0"}},{"$f":"TEXT(DATEVALUE(ספטמבר[[#Headers],[ספטמבר]]&\" \"&YEAR(TODAY())),\"mmm.\")&\"סך הכל: שעות רגילות\"","v":"ספט.סך הכל: שעות רגילות"},null,{"$f":"SUM(ספטמבר[שעות נוספות],ספטמבר[[שעות נוספות ]],ספטמבר[[שעות נוספות  ]],ספטמבר[[שעות נוספות   ]],ספטמבר[[שעות נוספות    ]])","v":{"v":0,"d":"0.0"}}]
["כותרת הרבעון הרביעי של אוקטובר, נובמבר ודצמבר מופיעה בתא E100. ",{"$nulls":3},"אוקטובר, נובמבר, דצמבר      כרטיס שעות לעובד: יומי, שבועי, חודשי, שנתי"]
["הזן את השעות הרגילות והשעות הנוספות בטבלה של אוקטובר שמתחילה בתא E101. ההוראה הבאה מופיעה בתא A110.",{"$nulls":3},"אוקטובר","שבוע 1","שעות נוספות","שבוע 2","שעות נוספות ","שבוע 3","שעות נוספות  ","שבוע 4","שעות נוספות   ","שבוע 5","שעות נוספות    "]
[{"$nulls":4},"שני"]
[{"$nulls":4},"שלישי"]
[{"$nulls":4},"רביעי"]
[{"$nulls":4},"חמישי"]
[{"$nulls":4},"שישי"]
[{"$nulls":4},"שבת"]
[{"$nulls":4},"ראשון"]
[{"$nulls":4},"סה\"כ שעות שבועיות",{"$f":"SUBTOTAL(109,אוקטובר[שבוע 1])","v":{"v":0,"d":"0.0"}},{"$f":"SUBTOTAL(109,אוקטובר[שעות נוספות])","v":{"v":0,"d":"0.0"}},{"$f":"SUBTOTAL(109,אוקטובר[שבוע 2])","v":{"v":0,"d":"0.0"}},{"$f":"SUBTOTAL(109,אוקטובר[[שעות נוספות ]])","v":{"v":0,"d":"0.0"}},{"$f":"SUBTOTAL(109,אוקטובר[שבוע 3])","v":{"v":0,"d":"0.0"}},{"$f":"SUBTOTAL(109,אוקטובר[[שעות נוספות  ]])","v":{"v":0,"d":"0.0"}},{"$f":"SUBTOTAL(109,אוקטובר[שבוע 4])","v":{"v":0,"d":"0.0"}},{"$f":"SUBTOTAL(109,אוקטובר[[שעות נוספות   ]])","v":{"v":0,"d":"0.0"}},{"$f":"SUBTOTAL(109,אוקטובר[שבוע 5])","v":{"v":0,"d":"0.0"}},{"$f":"SUBTOTAL(109,אוקטובר[[שעות נוספות    ]])","v":{"v":0,"d":"0.0"}}]
["סה\"כ השעות הרגילות באוקטובר בתא F110 וסה\"כ השעות הנוספות באוקטובר בתא I110 מחושבות באופן אוטומטי. ההוראה הבאה מופיעה בתא A112.",{"$nulls":3},{"$f":"TEXT(DATEVALUE(אוקטובר[[#Headers],[אוקטובר]]&\" \"&YEAR(TODAY())),\"mmm.\")&\"סך הכל: שעות נוספות\"","v":"אוק.סך הכל: שעות נוספות"},{"$f":"SUM(אוקטובר[שבוע 1],אוקטובר[שבוע 2],אוקטובר[שבוע 3],אוקטובר[שבוע 4],אוקטובר[שבוע 5])","v":{"v":0,"d":"0.0"}},{"$f":"TEXT(DATEVALUE(אוקטובר[[#Headers],[אוקטובר]]&\" \"&YEAR(TODAY())),\"mmm.\")&\"סך הכל: שעות רגילות\"","v":"אוק.סך הכל: שעות רגילות"},null,{"$f":"SUM(אוקטובר[שעות נוספות],אוקטובר[[שעות נוספות ]],אוקטובר[[שעות נוספות  ]],אוקטובר[[שעות נוספות   ]],אוקטובר[[שעות נוספות    ]])","v":{"v":0,"d":"0.0"}}]
[]
["הזן את השעות הרגילות והשעות הנוספות בטבלה של נובמבר שמתחילה בתא E112. ההוראה הבאה מופיעה בתא A121.",{"$nulls":3},"נובמבר","שבוע 1","שעות נוספות","שבוע 2","שעות נוספות ","שבוע 3","שעות נוספות  ","שבוע 4","שעות נוספות    ","שבוע 5","שעות נוספות     "]
[{"$nulls":4},"שני"]
[{"$nulls":4},"שלישי"]
[{"$nulls":4},"רביעי"]
[{"$nulls":4},"חמישי"]
[{"$nulls":4},"שישי"]
[{"$nulls":4},"שבת"]
[{"$nulls":4},"ראשון"]
[{"$nulls":4},"סה\"כ שעות שבועיות",{"$f":"SUBTOTAL(109,נובמבר[שבוע 1])","v":{"v":0,"d":"0.0"}},{"$f":"SUBTOTAL(109,נובמבר[שעות נוספות])","v":{"v":0,"d":"0.0"}},{"$f":"SUBTOTAL(109,נובמבר[שבוע 2])","v":{"v":0,"d":"0.0"}},{"$f":"SUBTOTAL(109,נובמבר[[שעות נוספות ]])","v":{"v":0,"d":"0.0"}},{"$f":"SUBTOTAL(109,נובמבר[שבוע 3])","v":{"v":0,"d":"0.0"}},{"$f":"SUBTOTAL(109,נובמבר[[שעות נוספות  ]])","v":{"v":0,"d":"0.0"}},{"$f":"SUBTOTAL(109,נובמבר[שבוע 4])","v":{"v":0,"d":"0.0"}},{"$f":"SUBTOTAL(109,נובמבר[[שעות נוספות    ]])","v":{"v":0,"d":"0.0"}},{"$f":"SUBTOTAL(109,נובמבר[שבוע 5])","v":{"v":0,"d":"0.0"}},{"$f":"SUBTOTAL(109,נובמבר[[שעות נוספות     ]])","v":{"v":0,"d":"0.0"}}]
["סה\"כ השעות הרגילות בנובמבר בתא F121 וסה\"כ השעות הנוספות בנובמבר בתא I121 מחושבות באופן אוטומטי. ההוראה הבאה מופיעה בתא A123.",{"$nulls":3},{"$f":"TEXT(DATEVALUE(נובמבר[[#Headers],[נובמבר]]&\" \"&YEAR(TODAY())),\"mmm.\")&\"סך הכל: שעות נוספות\"","v":"נוב.סך הכל: שעות נוספות"},{"$f":"SUM(נובמבר[שבוע 1],נובמבר[שבוע 2],נובמבר[שבוע 3],נובמבר[שבוע 4],נובמבר[שבוע 5])","v":{"v":0,"d":"0.0"}},{"$f":"TEXT(DATEVALUE(נובמבר[[#Headers],[נובמבר]]&\" \"&YEAR(TODAY())),\"mmm.\")&\"סך הכל: שעות רגילות\"","v":"נוב.סך הכל: שעות רגילות"},null,{"$f":"SUM(נובמבר[שעות נוספות],נובמבר[[שעות נוספות ]],נובמבר[[שעות נוספות  ]],נובמבר[[שעות נוספות    ]],נובמבר[[שעות נוספות     ]])","v":{"v":0,"d":"0.0"}}]
[]
["הזן את השעות הרגילות והשעות הנוספות בטבלה של דצמבר שמתחילה בתא E123. ההוראה הבאה מופיעה בתא A132.",{"$nulls":3},"דצמבר","שבוע 1","שעות נוספות","שבוע 2","שעות נוספות ","שבוע 3","שעות נוספות  ","שבוע 4","שעות נוספות   ","שבוע 5","שעות נוספות    "]
[{"$nulls":4},"שני"]
[{"$nulls":4},"שלישי"]
[{"$nulls":4},"רביעי"]
[{"$nulls":4},"חמישי"]
[{"$nulls":4},"שישי"]
[{"$nulls":4},"שבת"]
[{"$nulls":4},"ראשון"]
[{"$nulls":4},"סה\"כ שעות שבועיות",{"$f":"SUBTOTAL(109,דצמבר[שבוע 1])","v":{"v":0,"d":"0.0"}},{"$f":"SUBTOTAL(109,דצמבר[שעות נוספות])","v":{"v":0,"d":"0.0"}},{"$f":"SUBTOTAL(109,דצמבר[שבוע 2])","v":{"v":0,"d":"0.0"}},{"$f":"SUBTOTAL(109,דצמבר[[שעות נוספות ]])","v":{"v":0,"d":"0.0"}},{"$f":"SUBTOTAL(109,דצמבר[שבוע 3])","v":{"v":0,"d":"0.0"}},{"$f":"SUBTOTAL(109,דצמבר[[שעות נוספות  ]])","v":{"v":0,"d":"0.0"}},{"$f":"SUBTOTAL(109,דצמבר[שבוע 4])","v":{"v":0,"d":"0.0"}},{"$f":"SUBTOTAL(109,דצמבר[[שעות נוספות   ]])","v":{"v":0,"d":"0.0"}},{"$f":"SUBTOTAL(109,דצמבר[שבוע 5])","v":{"v":0,"d":"0.0"}},{"$f":"SUBTOTAL(109,דצמבר[[שעות נוספות    ]])","v":{"v":0,"d":"0.0"}}]
["סה\"כ השעות הרגילות בדצמבר בתא F132 וסה\"כ השעות הנוספות בדצמבר בתא I132 מחושבות באופן אוטומטי.",{"$nulls":3},{"$f":"TEXT(DATEVALUE(דצמבר[[#Headers],[דצמבר]]&\" \"&YEAR(TODAY())),\"mmm.\")&\"סך הכל: שעות נוספות\"","v":"דצמ.סך הכל: שעות נוספות"},{"$f":"SUM(דצמבר[שבוע 1],דצמבר[שבוע 2],דצמבר[שבוע 3],דצמבר[שבוע 4],דצמבר[שבוע 5])","v":{"v":0,"d":"0.0"}},{"$f":"TEXT(DATEVALUE(דצמבר[[#Headers],[דצמבר]]&\" \"&YEAR(TODAY())),\"mmm.\")&\"סך הכל: שעות רגילות\"","v":"דצמ.סך הכל: שעות רגילות"},null,{"$f":"SUM(G124:G130,I124:I130,K124:K130,M124:M130,O124:O130)","v":{"v":0,"d":"0.0"}}]